Workbook

Sheet Geodesie
C3: Sphéroïde | F3: Projection UTM
B4: 42 | C4: Sphéroïde | D4: =INDEX(Spheroides!C8:C56,B4) -> WGS 84 | E4: 1 | F4: Projection | G4: =INDEX(Projections!F3:F4,Geodesie!E4) -> N
B5: 19 | C5: Gd Axe: | D5: =INDEX(Spheroides!D8:D56,B4) -> 6378137 | F5: Zone | G5: =IF(G6=TRUNC(G6,1),IF(G7="W",(183-G6)/6,(183+G6)/6),"") -> 32
C6: Pt Axe: | D6: =INDEX(Spheroides!E8:E56,B4) -> 6356752.314 | E6: 4 | F6: Merid. Ctrl. | G6: =INDEX(Projections!A3:A33,Geodesie!E6) -> 9 | H6: =G6 -> 9
C7: e2 | D7: =INDEX(Spheroides!F8:F56,B4) -> 0.006694380067 | E7: 1 | F7: E/W | G7: =INDEX(Projections!G3:G4,Geodesie!E7) -> E | H7: E
C8: n | D8: =INDEX(Spheroides!G8:G56,B4) -> 0.001679220406 | E8: 1 | F8: Lat. Or. | G8: =INDEX(Projections!B3:B64,Geodesie!E8) -> 0 | H8: 0
C9: 1 / f | D9: =INDEX(Spheroides!H8:H56,B4) -> 298.2572201 | E9: 1 | F9: N/S | G9: =INDEX(Projections!F3:F4,Geodesie!E9) -> N | H9: N
E10: 2 | F10: Aplat. | G10: =INDEX(Projections!E3:E6,Geodesie!E10) -> 0.9996 | H10: 0.9996
E11: 3 | F11: Faux E | G11: =INDEX(Projections!C3:C8,Geodesie!E11) -> 500000 | H11: 500000
E12: 1 | F12: Faux N | G12: =INDEX(Projections!D3:D4,Geodesie!E12) -> 0 | H12: 0

Sheet Conversions
B2: Conversion de géographiques vers UTM
B5: Sphéroïde | K5: Projection
B6: =Geodesie!D4 -> WGS 84 | K6: ="UTM "&Geodesie!G4&" - Zone "&Geodesie!G5 -> UTM N - Zone 32
B7: =B10+C10/60+D10/3600 -> 41.14015556 | C7: =CaGeLon1(B25,F25) ->  | D7: =(ABS(B7)-ABS(B10))*60 -> 8.409333333 | F7: =F10+G10/60+H10/3600 -> 10.191555 | H7: =(ABS(C7)-ABS(F10))*60 -> 
B8: Coordonnées Géographiques | K8: UTM
B9: Latitude | F9: Longitude | K9: Eastings | L9: Northings | M9: Convergence | Q9: Fact. d'Echelle
B10: 41 | C10: 8 | D10: 24.56 | E10: =IF(B7<0,"S","N") -> N | F10: 10 | G10: 11 | H10: 29.598 | I10: =IF(F7<0,"W","E") -> E | K10: =GeoUTMX(C12,D12,G12,H12) -> 600000.0043 | L10: =GeoUTMY(C12,D12,G12,H12) -> 4555000.007 | M10: =ABS(TRUNC(M11,0)) -> 0 | N10: =TRUNC((ABS(M11)-M10)*60) -> 47 | O10: =(ABS(N11)-N10)*60 -> 2.373743148 | P10: =IF(M11<0,"W","E") -> E | Q10: =FactEchelle(K10,M10) -> 0.9997237891
C11: Latitude | G11: Longitude | M11: =convergence(K10,L10) -> 0.7839927064 | N11: =(ABS(M11)-M10)*60 -> 47.03956239
C12: =TRUNC(B7,0) -> 41 | D12: =ABS(B7-TRUNC(B7,0))*60 -> 8.409333333 | E12: =IF(B7<0,"S","N") -> N | G12: =TRUNC(F7,0) -> 10 | H12: =ABS(F7-F10)*60 -> 11.4933 | I12: =IF(F7<0,"W","E") -> E
B15: Conversion d'UTM vers géographiques
B18: Sphéroïde | K18: Projection
B19: =Geodesie!D4 -> WGS 84 | K19: ="UTM "&Geodesie!G4&" - Zone "&Geodesie!G5 -> UTM N - Zone 32
B21: Coordonnées Géographiques | K21: UTM
B22: Latitude | F22: Longitude | K22: Eastings | L22: Northings | M22: Convergeance | Q22: Fact. d'Echelle
B23: =ABS(C25) -> 41 | C23: =TRUNC(D25,0) -> 8 | D23: =(D25-C23)*60 -> 24.55979761 | E23: =IF(B20<0,"S","N") -> N | F23: =ABS(G25) -> 10 | G23: =TRUNC(H25,0) -> 11 | H23: =(H25-G23)*60 -> 29.59781046 | I23: =IF(F20<0,"W","E") -> E | K23: 600000 | L23: 4555000 | M23: =ABS(TRUNC(M24,0)) -> 0 | N23: =TRUNC((ABS(M24)-M23)*60) -> 47 | O23: =(ABS(N24)-N23)*60 -> 2.373614965 | P23: =IF(M24<0,"W","E") -> E | Q23: =FactEchelle(K23,M23) -> 0.9997237891
C24: Latitude | G24: Longitude | M24: =convergence(K23,L23) -> 0.7839926708 | N24: =(ABS(M24)-M23)*60 -> 47.03956025
B25: =lambgeolat(K23,L23) ->  | C25: =TRUNC(UTMgeolat(K23,L23),0) -> 41 | D25: =ABS((UTMgeolat(K23,L23)-C25)*60) -> 8.40932996 | E25: =IF(B20<0,"S","N") -> N | F25: =lambgeolon(K23,L23) ->  | G25: =TRUNC(UTMgeolon(K23,L23)) -> 10 | H25: =ABS((UTMgeolon(K23,L23)-G25)*60) -> 11.49329684 | I25: =IF(F20<0,"W","E") -> E

Sheet Projections (hidden)
A1: Ajouter les nouvelles data en fin de colonnes | E1: Ne pas editer cette feuille
A2: Meridien Central en degres | B2: Latitude d'origine | C2: Eastings d'origines | D2: Nothings d'origines | E2: Facteur d'echelle au M C | F2: N/S | G2: E/W
A3: 0 | B3: 0 | C3: 0 | D3: 0 | E3: 1 | F3: N | G3: E
A4: 2 | B4: 1 | C4: 300000 | D4: 10000000 | E4: 0.9996 | F4: S | G4: W
A5: 3 | B5: 2 | C5: 500000
A6: 9 | B6: 3 | C6: 600000
A7: 15 | B7: 4
A8: 21 | B8: 5
A9: 27 | B9: 6
A10: 33 | B10: 7
A11: 39 | B11: 8
A12: 45 | B12: 9
A13: 51 | B13: 10
A14: 57 | B14: 11
A15: 63 | B15: 12
A16: 69 | B16: 13
A17: 75 | B17: 14
A18: 81 | B18: 15
A19: 87 | B19: 16
A20: 93 | B20: 17
A21: 103 | B21: 18
A22: 109 | B22: 19
A23: 115 | B23: 20
A24: 121 | B24: 21
A25: 127 | B25: 22
A26: 133 | B26: 23
A27: 139 | B27: 24
A28: 145 | B28: 25
A29: 151 | B29: 26
A30: 157 | B30: 27
A31: 163 | B31: 28
A32: 169 | B32: 29
A33: 175 | B33: 30
B34: 31
B35: 32
B36: 33
B37: 34
B38: 35
B39: 36
B40: 37
B41: 38
B42: 39
B43: 40
B44: 41
B45: 42
B46: 43
B47: 44
B48: 45
B49: 46
B50: 47
B51: 48
B52: 49
B53: 50
B54: 51
B55: 52
B56: 53
B57: 54
B58: 55
B59: 56
B60: 57
B61: 58
B62: 59
B63: 60
B64: 61

Sheet Spheroides (hidden)
A1: Liste des Ellipsoides Disponibles
C7: Nom | D7: Demi Grand | E7: Demi Petit | F7: e2 | G7: n | H7: 1 / f
B8: 1 | C8: AIRY | D8: 6377563.396 | E8: 6356256.909 | F8: =POWER(1/D8*(SQRT((D8*D8)-(E8*E8))),2) -> 0.006670540074 | G8: 0.00167322025 | H8: =1/((D8-E8)/D8) -> 299.3249613
B9: 2 | C9: AIRY MOD | D9: 6377340.189 | E9: 6356034.448 | F9: 0.006670539981 | G9: 0.001673220305 | H9: 299.3249655
B10: 3 | C10: AUSTRALIAN NATIONAL 1967/84 | D10: 6378160 | E10: 6356774.719 | F10: 0.006694541916 | H10: =1/((D10-E10)/D10) -> 298.2499973
B11: 4 | C11: BESSEL 1841 | D11: 6377397.155 | E11: 6356078.963 | F11: 0.006674372175 | G11: 0.001674184787 | H11: 299.1528154
B12: 5 | C12: BESSEL 1841 MOD | D12: 6377483.865 | E12: 6356165.383 | F12: 0.006674372221 | G12: 0.001674184798 | H12: 299.1528133
B13: 6 | C13: BESSEL NGO | D13: 6377492.018 | E13: 6356173.509 | F13: 0.006674372142 | H13: 299.1528168
B14: 7 | C14: BESSEL RD / POTSDAM | D14: 6377397.155 | E14: 6356078.963 | F14: 0.006674372175 | H14: 299.1528154
B15: 8 | C15: BROADCAST | D15: 6378135 | E15: 6356750.52 | F15: 0.006694317783 | H15: 298.2599998
B16: 9 | C16: CLARKE 1856 | D16: 6378235.6 | E16: 6356560.14 | F16: 0.00678514592 | H16: 294.2606801
B17: 10 | C17: CLARKE 1866 | D17: 6378206.4 | E17: 6356583.8 | F17: 0.006768657997 | G17: 0.001697915683 | H17: 294.9786982
B18: 11 | C18: CLARKE 1880 | D18: 6378249.145 | E18: 6356514.87 | F18: 0.006803511142 | G18: 0.001706688477 | H18: 293.4650061
B19: 12 | C19: CLARKE 1880 IGN | D19: 6378249.2 | E19: 6356515 | F19: =POWER(1/D19*(SQRT((D19*D19)-(E19*E19))),2) -> 0.006803487646 | H19: 293.4660213
B20: 13 | C20: CLARKE 1880 MOD | D20: 6378249.145 | E20: 6356514.87 | F20: =POWER(1/D20*(SQRT((D20*D20)-(E20*E20))),2) -> 0.006803511142 | G20: 0.001706688477 | H20: 293.4650061
B21: 14 | C21: CLARKE 1880 (PALESTINE) | D21: 6378300.782 | E21: 6356566.427 | F21: =POWER(1/D21*(SQRT((D21*D21)-(E21*E21))),2) -> 0.006803481156 | H21: 293.4663017
B22: 15 | C22: DANISH 1876 / ANDRAE | D22: 6377104.43 | E22: 6355847.415 | F22: 0.006655555628 | H22: 299.9999967
B23: 16 | C23: EVEREST (INDE) METRIQUE | D23: 6377301.243 | E23: 6356100.23 | F23: 0.00663784612 | H23: 300.8017232
B24: 17 | C24: EVEREST (MALAYA) | D24: 6377295.664 | E24: 6356094.668 | F24: 0.006637846604 | H24: =1/((D24-E24)/D24) -> 300.8017012
B25: 18 | C25: EVEREST 1830 | D25: 6377276.345 | E25: 6356075.413 | F25: 0.006637846674 | G25: 0.001664992251 | H25: 300.801698
B26: 19 | C26: EVEREST 1830 (MOD.) | D26: 6377298.561 | E26: 6356097.555 | F26: 0.006637846719 | H26: 300.801696
B27: 20 | C27: EVEREST BORNEO | D27: 6377298.556 | E27: 6356097.555 | F27: 0.006637845161 | H27: 300.8017667
B28: 21 | C28: EVEREST MOD. | D28: 6377304.063 | E28: 6356103.039 | F28: 0.006637846628 | H28: 300.8017001
B29: 22 | C29: FISHER 1960 (MERCURY) | D29: 6378166 | E29: 6356784.284 | F29: 0.0066934215 | H29: 298.3000055
B30: 23 | C30: FISHER 1968 | D30: 6378150 | E30: 6356768.337 | F30: 0.006693421699 | H30: 298.2999966
B31: 24 | C31: FISCHER MOD | D31: 6378160 | E31: 6356774.719 | F31: 0.006694541916 | G31: 0.00167926114 | H31: 298.2499973
B32: 25 | C32: FISHER MOD. 1960 | D32: 6378155 | E32: 6356773.32 | F32: 0.006693421774 | H32: 298.2999933
B33: 26 | C33: GRS 67 | D33: 6378160 | E33: 6356774.516 | F33: 0.006694605357 | H33: 298.2471662
B34: 27 | C34: GRS 80 | D34: 6378137 | E34: 6356752.314 | F34: 0.006694380067 | H34: 298.2572201
B35: 28 | C35: HELMERT 1906 | D35: 6378200 | E35: 6356818 | F35: 0.006693474635 | G35: 0.001678992523 | H35: 298.2976335
B36: 29 | C36: HOUGH | D36: 6378270 | E36: 6356794.343 | F36: 0.006722670158 | G36: 0.001686340675 | H36: 296.999994
B37: 30 | C37: INTERNATIONAL | D37: 6378388 | E37: 6356911.946 | F37: =POWER(1/D37*(SQRT((D37*D37)-(E37*E37))),2) -> 0.006722670062 | G37: 0.001686340651 | H37: 296.9999982
B38: 31 | C38: JEFFREYS 1948 | D38: 6378099 | E38: 6356631 | F38: 0.006720457146 | H38: 297.0979598
B39: 32 | C39: KRASSOVSKY | D39: 6378245 | E39: 6356863 | F39: 0.00669342749 | G39: 0.001678980657 | H39: 298.2997381
B40: 33 | C40: PRECISE | D40: 6378145 | E40: 6356759.769 | F40: 0.006694542007 | G40: 0.001679261164 | H40: =1/((D40-E40)/D40) -> 298.2499932
B41: 34 | C41: REF ELLIPSOIDE 1967 | D41: 6378160 | E41: 6356774.719 | F41: 0.006694541916 | G41: 0.00167926114 | H41: 298.2499973
B42: 35 | C42: S AMERICA 1969 | D42: 6378160 | E42: 6356774.719 | F42: 0.006694541916 | G42: 0.00167926114 | H42: 298.2499973
B43: 36 | C43: STRUVE 1860 | D43: 6378298.3 | E43: 6356657.143 | F43: 0.006774359698 | H43: 294.7300045
B44: 37 | C44: SVANBERG | D44: 6376797 | E44: 6355837.971 | F44: 0.006562725865 | H44: 304.2505929
B45: 38 | C45: WAR OFFICE 1924 | D45: 6378300 | E45: 6356751.689 | F45: 0.006745343375 | H45: 295.9999974
B46: 39 | C46: WGS 60 | D46: 6378165 | E46: 6356783.287 | F46: 0.00669342161 | H46: 298.3000006
B47: 40 | C47: WGS 66 | D47: 6378145 | E47: 6356759.769 | F47: 0.006694542007 | H47: 298.2499932
B48: 41 | C48: WGS 72 | D48: 6378135 | E48: 6356750.52 | F48: 0.006694317783 | G48: 0.00167920473 | H48: 298.2599998
B49: 42 | C49: WGS 84 | D49: 6378137 | E49: 6356752.314 | F49: 0.006694380067 | G49: 0.001679220406 | H49: 298.2572201
B50: 43
B51: 44
B52: 45
B53: 46
